bitfinex-derivatives/quotes_BTCF0:USTF0_20250827
["timestamp","ask_amount","ask_price","bid_price","bid_amount"]
[1756253896573,0.96019852,111750.0,111740.0,0.1623192]
[1756253896766,0.6139034,111750.0,111740.0,0.2465792]
[1756253896971,1.78147852,111750.0,111740.0,0.2135192]
[1756253898675,1.78147852,111750.0,111740.0,0.1805792]
[1756253898974,1.78147852,111750.0,111740.0,0.2465792]
[1756253899778,1.78147852,111750.0,111740.0,0.2135192]
[1756253900169,1.78147852,111750.0,111740.0,0.1174292]
[1756253900369,1.78147852,111750.0,111740.0,0.1406092]
[1756253900871,1.78147852,111750.0,111740.0,0.0894892]
[1756253901068,1.78147852,111750.0,111730.0,0.4218]
[1756253901069,0.2243787,111740.0,111730.0,0.140613]
[1756253901269,1.1044398,111740.0,111730.0,0.195263]
[1756253901472,1.1044398,111740.0,111730.0,0.213523]
[1756253901680,1.1044398,111740.0,111730.0,0.246583]
[1756253902974,1.0149511,111740.0,111730.0,0.246583]
[1756253903481,0.84182989,111740.0,111730.0,0.246583]
[1756253904277,0.93131859,111740.0,111730.0,0.246583]
[1756253904781,0.5851787,111740.0,111730.0,0.246583]
[1756253904974,0.93131859,111740.0,111730.0,0.246583]
[1756253907979,0.57051859,111740.0,111730.0,0.246583]
[1756253908869,0.93131859,111740.0,111730.0,0.180583]
[1756253909069,0.93131859,111740.0,111730.0,0.140613]
[1756253909270,0.93131859,111740.0,111730.0,0.246583]
[1756253910482,0.74628577,111740.0,111730.0,0.246583]
[1756253910781,0.74728577,111740.0,111730.0,0.246583]
[1756253911482,0.38648577,111740.0,111730.0,0.246583]
[1756253911683,0.74728577,111740.0,111730.0,0.246583]
[1756253912177,0.38648577,111740.0,111730.0,0.246583]
[1756253912581,0.74728577,111740.0,111730.0,0.246583]
[1756253912983,0.40114588,111740.0,111730.0,0.246583]
[1756253913179,0.74728577,111740.0,111730.0,0.246583]
[1756253913780,0.40114588,111740.0,111730.0,0.246583]
[1756253914084,0.74728577,111740.0,111730.0,0.246583]
[1756253915876,0.40114588,111740.0,111730.0,0.246583]
[1756253916081,0.38648577,111740.0,111730.0,0.246583]
[1756253916878,0.40677665,111740.0,111730.0,0.246583]
[1756253917881,0.38648577,111740.0,111730.0,0.246583]
[1756253919685,0.04034588,111740.0,111730.0,0.246583]
[1756253919980,0.38648577,111740.0,111730.0,0.246583]
[1756253920486,0.74728577,111740.0,111730.0,0.246583]
[1756253922289,0.40114588,111740.0,111730.0,0.246583]
[1756253922586,0.74728577,111740.0,111730.0,0.246583]
[1756253923287,0.92035258,111740.0,111730.0,0.246583]
[1756253925092,0.40114588,111740.0,111730.0,0.246583]
[1756253925291,0.92035258,111740.0,111730.0,0.246583]
[1756253928394,0.92035258,111740.0,111730.0,0.213133]
[1756253928993,0.92035258,111740.0,111730.0,0.248853]
[1756253930891,0.40114588,111740.0,111730.0,0.248853]
[1756253931394,1.74139258,111740.0,111730.0,0.248853]
[1756253933191,0.40114588,111740.0,111730.0,0.248853]
[1756253933495,1.08164335,111740.0,111730.0,0.50845635]
[1756253933894,1.17113125,111740.0,111730.0,0.50845635]
[1756253935789,1.17113125,111740.0,111730.0,0.248853]
[1756253935989,1.17113125,111740.0,111730.0,0.50845635]
[1756253936594,1.4307346,111740.0,111730.0,0.50845635]
[1756253940195,0.6096946,111740.0,111730.0,0.50845635]
[1756253940501,1.17109125,111740.0,111730.0,0.50845635]
[1756253940700,1.17109125,111740.0,111730.0,0.248853]
[1756253940901,1.17109125,111740.0,111730.0,0.50845635]
[1756253941504,0.9114879,111740.0,111730.0,0.50845635]
[1756253941895,1.17109125,111740.0,111730.0,0.50845635]
[1756253942503,0.0904879,111740.0,111730.0,0.50845635]
[1756253942697,1.17109125,111740.0,111730.0,0.50845635]
[1756253942898,0.9114879,111740.0,111730.0,0.50845635]
[1756253943097,0.9114879,111740.0,111730.0,0.52845635]
[1756253943098,1.17109125,111740.0,111730.0,0.52845635]
[1756253944402,1.17109125,111740.0,111730.0,0.268853]
[1756253944701,1.17109125,111740.0,111730.0,0.52845635]
[1756253948715,1.4306946,111740.0,111730.0,0.52845635]
[1756253948916,1.7914946,111740.0,111730.0,0.268853]
[1756253950217,1.7914946,111740.0,111730.0,0.52845635]
[1756253952319,0.6096946,111740.0,111730.0,0.52845635]
[1756253952519,1.17105125,111740.0,111730.0,0.52845635]
[1756253954221,1.17105125,111740.0,111730.0,0.268853]
[1756253954414,1.17105125,111740.0,111730.0,0.52845635]
[1756253955214,0.0904879,111740.0,111730.0,0.52845635]
[1756253955416,0.001,111740.0,111730.0,1.3788597]
[1756253955717,0.82192,111740.0,111730.0,1.5988597]
[1756253955919,0.001,111740.0,111730.0,1.33925635]
[1756253957125,1.12754797,111750.0,111740.0,0.2498479]
[1756253957322,1.12754797,111750.0,111740.0,0.50945125]
[1756253958328,1.21702787,111750.0,111740.0,0.50945125]
[1756253958729,1.21802787,111750.0,111740.0,0.50945125]
[1756253961531,1.21802787,111750.0,111740.0,0.2498479]
[1756253961730,1.21802787,111750.0,111740.0,0.50945125]
[1756253961934,1.57882787,111750.0,111740.0,0.2498479]
[1756253962228,1.57882787,111750.0,111740.0,0.1629379]
[1756253962734,1.57882787,111750.0,111740.0,0.2498479]
[1756253963234,1.57882787,111750.0,111740.0,0.50945125]
[1756253964436,1.57882787,111750.0,111740.0,0.2139779]
[1756253964636,1.57882787,111750.0,111740.0,0.50945125]
[1756253964830,1.31922452,111750.0,111740.0,0.50945125]
[1756253965235,1.57882787,111750.0,111740.0,0.50945125]
[1756253966734,1.57882787,111750.0,111740.0,0.2498479]
[1756253966940,1.57882787,111750.0,111740.0,0.50945125]
[1756253967239,1.57882787,111750.0,111740.0,0.2498479]
[1756253969940,1.57882787,111750.0,111740.0,0.50945125]
[1756253970242,1.57882787,111750.0,111740.0,0.2498479]
[1756253970435,1.83843122,111750.0,111740.0,0.1403179]
[1756253970642,1.83843122,111750.0,111740.0,0.1172279]
[1756253971643,1.83843122,111750.0,111740.0,0.02774]
[1756253972543,1.83843122,111750.0,111740.0,0.1172275]
[1756253972746,1.57882787,111750.0,111740.0,0.1403175]
[1756253976649,0.49830452,111750.0,111740.0,0.2498475]
[1756253976849,0.86874462,111750.0,111740.0,1.1298542]
[1756253977045,1.21782747,111750.0,111740.0,0.87025085]
[1756253978354,0.39710747,111750.0,111740.0,0.87025085]
[1756253978651,1.22294747,111750.0,111740.0,0.87025085]
[1756253979153,0.30762797,111750.0,111740.0,0.87025085]
[1756253979353,1.13342797,111750.0,111740.0,0.87025085]
[1756253980861,0.30762797,111750.0,111740.0,1.1298542]
[1756253981049,0.04802462,111750.0,111740.0,1.1298542]
[1756253981256,0.87346462,111750.0,111740.0,1.1298542]
[1756253981455,1.13306797,111750.0,111740.0,1.1298542]
[1756253983461,1.13306797,111750.0,111740.0,1.3098542]
[1756253984459,1.22254747,111750.0,111740.0,1.3098542]
[1756253984653,1.22254747,111750.0,111740.0,0.7906475]
[1756253985158,1.22254747,111750.0,111740.0,1.05025085]
[1756253986254,1.20271931,111750.0,111740.0,1.05025085]
[1756253987558,1.20223931,111750.0,111740.0,1.05025085]
[1756253988656,1.20223931,111750.0,111740.0,0.7583475]
[1756253988865,1.56303931,111750.0,111740.0,0.2175475]
[1756253989558,1.56303931,111750.0,111740.0,0.1403175]
[1756253989960,1.56303931,111750.0,111740.0,0.1172275]
[1756253992964,1.56303931,111750.0,111740.0,0.1398575]
[1756253993863,1.56303931,111750.0,111740.0,0.1617975]
[1756253994065,1.56303931,111750.0,111740.0,0.2488975]
[1756253994656,1.56303931,111750.0,111740.0,0.52850085]
[1756253995467,1.56303931,111750.0,111740.0,0.2688975]
[1756253995767,1.56303931,111750.0,111740.0,0.52850085]
[1756253995975,1.56303931,111750.0,111740.0,0.50850085]
[1756253999469,1.30343596,111750.0,111740.0,0.50850085]
[1756253999665,1.56303931,111750.0,111740.0,0.50850085]
[1756254002278,1.30343596,111750.0,111740.0,0.50850085]
[1756254002477,0.47847596,111750.0,111740.0,0.50850085]
[1756254002678,1.56155931,111750.0,111740.0,0.50850085]
[1756254005681,1.56155931,111750.0,111740.0,0.52850085]
[1756254006876,1.56155931,111750.0,111740.0,0.2488975]
[1756254007183,1.56155931,111750.0,111740.0,0.50850085]
[1756254010684,1.30195596,111750.0,111740.0,0.2488975]
[1756254010889,1.56155931,111750.0,111740.0,0.50850085]
[1756254012992,1.56155931,111750.0,111740.0,0.2488975]
[1756254013191,1.56155931,111750.0,111740.0,0.50850085]
[1756254013581,1.30195596,111750.0,111740.0,0.50850085]
[1756254013786,1.56155931,111750.0,111740.0,0.50850085]
[1756254015192,1.30195596,111750.0,111740.0,0.50850085]
[1756254015394,1.56155931,111750.0,111740.0,0.50850085]
[1756254015590,1.30195596,111750.0,111740.0,0.50850085]
[1756254015799,1.56155931,111750.0,111740.0,0.2488975]
[1756254015991,1.56155931,111750.0,111740.0,0.50850085]
[1756254017901,1.56155931,111750.0,111740.0,0.2488975]
[1756254018103,1.56155931,111750.0,111740.0,0.50850085]
[1756254018302,0.02819646,111750.0,111740.0,0.50850085]
[1756254018502,1.10983981,111750.0,111740.0,0.50850085]
[1756254019199,0.85023646,111750.0,111740.0,0.50850085]
[1756254019501,1.19931931,111750.0,111740.0,0.50850085]
[1756254020003,0.93971596,111750.0,111740.0,0.50850085]
[1756254020405,1.19931931,111750.0,111740.0,0.2488975]
[1756254020609,1.19931931,111750.0,111740.0,0.50850085]
[1756254021693,1.01645596,111750.0,111740.0,0.50850085]
[1756254021999,0.45183541,111760.0,111750.0,0.0894794]
[1756254022203,1.29219524,111760.0,111750.0,0.52508275]
[1756254022398,1.55179859,111760.0,111750.0,0.52508275]
[1756254023204,1.55279239,111760.0,111750.0,0.52508275]
[1756254023404,1.55479239,111760.0,111750.0,0.52508275]
[1756254023900,1.46532099,111760.0,111750.0,0.52508275]
[1756254025201,0.84491764,111760.0,111750.0,0.52508275]
[1756254025504,1.19399239,111760.0,111750.0,0.52508275]
[1756254026403,1.19299239,111760.0,111750.0,0.52508275]
[1756254027105,1.19099239,111760.0,111750.0,0.52508275]
[1756254027506,0.01979764,111760.0,111750.0,0.52508275]
[1756254027705,1.79393359,111780.0,111770.0,0.2454634]
[1756254028005,2.61629359,111780.0,111770.0,0.74506675]
[1756254028904,1.79393359,111780.0,111770.0,0.74506675]
[1756254029100,0.07290735,111780.0,111770.0,1.10586675]
[1756254029298,0.81622879,111800.0,111790.0,0.1901476]
[1756254029499,0.81622299,111800.0,111790.0,0.2323876]
[1756254029704,1.20221688,111800.0,111790.0,0.61119953]
[1756254030005,1.20221688,111800.0,111790.0,0.2654476]
[1756254030306,1.29165668,111800.0,111790.0,0.2654476]
[1756254030504,1.20221688,111800.0,111790.0,0.2654476]
[1756254030805,1.20521688,111800.0,111790.0,0.2654476]
[1756254031100,1.29465668,111800.0,111790.0,0.2654476]
[1756254031304,1.64040861,111800.0,111790.0,0.2454476]
[1756254031502,1.71538162,111800.0,111790.0,0.02714]
[1756254032094,1.36962969,111800.0,111790.0,0.02714]
[1756254032303,1.71538162,111800.0,111790.0,0.02714]
[1756254033107,1.36962969,111800.0,111790.0,0.02714]
[1756254033309,1.36962969,111800.0,111790.0,0.04963]
[1756254033506,1.71538162,111800.0,111790.0,0.04963]
[1756254034210,1.71538162,111800.0,111790.0,0.02714]
[1756254036110,1.71538162,111800.0,111790.0,0.1165874]
[1756254036300,1.96538162,111800.0,111790.0,0.02714]
[1756254036805,1.77334536,111800.0,111790.0,0.02714]
[1756254037010,2.11909729,111800.0,111790.0,0.02714]
[1756254037216,1.77334536,111800.0,111790.0,0.02714]
[1756254038211,0.0894474,111790.0,111780.0,0.48027676]
[1756254038406,0.43519933,111790.0,111780.0,0.48027676]
[1756254038613,0.43519933,111790.0,111780.0,0.50276676]
[1756254039013,0.0894474,111790.0,111780.0,0.61192676]
[1756254039214,0.43519933,111790.0,111780.0,0.61192676]
[1756254039414,0.43619933,111790.0,111780.0,0.61192676]
[1756254040210,0.43819933,111790.0,111780.0,0.61192676]
[1756254040808,0.34875193,111790.0,111780.0,0.61192676]
[1756254041112,0.003,111790.0,111780.0,1.22767869]
[1756254041315,0.832,111790.0,111780.0,1.22767869]
[1756254042713,0.832,111790.0,111780.0,0.88192676]
[1756254043014,0.832,111790.0,111780.0,1.22767869]
[1756254043614,0.001,111790.0,111780.0,1.22767869]
[1756254043916,0.8314,111790.0,111780.0,1.47767869]
[1756254044619,0.8304,111790.0,111780.0,1.47767869]
[1756254045022,0.92210989,111800.0,111790.0,0.2514175]
[1756254045310,0.01873688,111800.0,111790.0,1.08796943]
[1756254045516,0.83012,111800.0,111790.0,1.08796943]
[1756254046318,0.84734304,111800.0,111790.0,1.08796943]
[1756254046519,0.91887792,111800.0,111790.0,1.08796943]
[1756254046720,0.91907792,111800.0,111790.0,1.08796943]
[1756254047720,0.91807792,111800.0,111790.0,1.08796943]
[1756254048330,0.91783792,111800.0,111790.0,1.08796943]
[1756254050618,0.91783792,111800.0,111790.0,0.7422175]
[1756254050923,0.91783792,111800.0,111790.0,1.08796943]
[1756254052423,1.00727742,111800.0,111790.0,0.7092875]
[1756254052618,1.35302935,111800.0,111790.0,0.7422175]
[1756254054324,1.00727742,111800.0,111790.0,0.7422175]
[1756254054525,1.35302935,111800.0,111790.0,0.7422175]
[1756254055220,1.00727742,111800.0,111790.0,0.7422175]
[1756254056823,1.00727742,111800.0,111790.0,0.7092875]
[1756254057016,1.00727742,111800.0,111790.0,0.3814175]
[1756254057222,1.00727742,111800.0,111790.0,0.7422175]
[1756254057729,1.35302935,111800.0,111790.0,0.7422175]
[1756254058828,1.35302935,111800.0,111790.0,0.3814175]
[1756254059030,1.94878128,111800.0,111790.0,0.15989]
[1756254059230,2.30958128,111800.0,111790.0,0.15989]
[1756254059426,1.96382935,111800.0,111790.0,0.2493375]
[1756254060331,1.96382935,111800.0,111790.0,0.2722775]
[1756254060729,1.96382935,111800.0,111790.0,0.2941775]
[1756254061130,1.71382935,111800.0,111790.0,0.3617575]
[1756254061331,1.36807742,111800.0,111790.0,0.3814175]
[1756254061527,1.26358985,111800.0,111790.0,0.3814175]
[1756254061727,1.26358985,111800.0,111790.0,0.7422175]
[1756254062731,1.26162985,111800.0,111790.0,0.7422175]
[1756254063128,0.91571792,111800.0,111790.0,1.08796943]
[1756254063631,0.91571792,111800.0,111790.0,0.7422175]
[1756254064535,0.08775792,111800.0,111790.0,0.7422175]
[1756254064726,0.82788,111800.0,111790.0,0.7422175]
[1756254065437,0.90025191,111800.0,111790.0,0.7422175]
[1756254065626,0.07237191,111800.0,111790.0,0.7422175]
[1756254065826,0.82828,111800.0,111790.0,0.7422175]
[1756254066027,0.84506044,111800.0,111790.0,0.7422175]
[1756254066228,0.67269719,111800.0,111790.0,0.7422175]
[1756254066623,0.84486044,111800.0,111790.0,1.08796943]
[1756254069034,0.84486044,111800.0,111790.0,0.7422175]
[1756254069226,0.84486044,111800.0,111790.0,1.08796943]
[1756254069936,0.91572991,111800.0,111790.0,1.08796943]
[1756254070435,0.91528991,111800.0,111790.0,1.08796943]
[1756254071632,0.08764991,111800.0,111790.0,1.08796943]
[1756254071832,0.82724,111800.0,111790.0,1.08796943]
[1756254072033,0.43518873,111810.0,111800.0,0.1515701]
[1756254072232,0.43518873,111810.0,111800.0,0.6073201]
[1756254072432,0.9165568,111810.0,111800.0,0.6073201]
[1756254072636,1.26230873,111810.0,111800.0,0.6073201]
[1756254073334,1.81191618,111820.0,111810.0,0.1843821]
[1756254073636,2.65643604,111820.0,111810.0,0.2465121]
[1756254074028,3.07280154,111820.0,111810.0,0.2465121]
[1756254074742,3.07280154,111820.0,111810.0,0.3765121]
[1756254075236,3.07880154,111820.0,111810.0,0.3765121]
[1756254076740,3.07880154,111820.0,111810.0,0.3448421]
[1756254076938,2.98869524,111820.0,111810.0,0.7373121]
[1756254077742,2.16133524,111820.0,111810.0,0.7373121]
[1756254077938,1.28749524,111820.0,111810.0,0.7373121]
[1756254079144,0.11438331,111820.0,111810.0,1.08306403]
[1756254079442,0.94134331,111820.0,111810.0,1.08306403]
[1756254079634,0.94134331,111820.0,111810.0,0.7373121]
[1756254079838,0.94134331,111820.0,111810.0,0.9473121]
[1756254083243,1.03076721,111820.0,111810.0,0.9473121]
[1756254083645,1.03104721,111820.0,111810.0,0.9473121]
[1756254084044,0.94162331,111820.0,111810.0,0.9473121]
[1756254085255,1.03104721,111820.0,111810.0,0.9473121]
[1756254085948,1.37679914,111820.0,111810.0,0.9473121]
[1756254086848,1.37679914,111820.0,111810.0,0.6456421]
[1756254087044,1.62679914,111820.0,111810.0,0.02912]
[1756254087249,1.62679914,111820.0,111800.0,0.11869416]
[1756254087250,0.0894319,111810.0,111800.0,0.11869416]
[1756254087461,0.79598383,111810.0,111800.0,0.11869416]
[1756254088154,0.79598383,111810.0,111800.0,0.02925426]
[1756254088455,0.79698383,111810.0,111800.0,0.11869426]
[1756254089353,0.79998383,111810.0,111800.0,0.11869426]
[1756254089546,0.4542319,111810.0,111800.0,0.11869426]
[1756254089756,0.79998383,111810.0,111800.0,0.11869426]
[1756254090558,1.04998383,111810.0,111800.0,0.11869426]
[1756254091359,0.7042319,111810.0,111800.0,0.14063426]
[1756254091564,0.7042319,111810.0,111800.0,0.24665426]
[1756254091758,0.3434319,111810.0,111800.0,0.24665426]
[1756254091960,1.17839193,111810.0,111800.0,0.60745426]
[1756254092161,1.18307193,111810.0,111800.0,0.60745426]
[1756254093463,0.004,111810.0,111800.0,0.60745426]
[1756254093669,0.83888,111810.0,111800.0,0.97745426]
[1756254094268,0.83988,111810.0,111800.0,0.97745426]
[1756254094568,0.83988,111810.0,111800.0,1.32320619]
[1756254094769,0.83988,111810.0,111800.0,0.97745426]
[1756254099674,0.83988,111810.0,111800.0,0.60745426]
[1756254099968,0.83988,111810.0,111800.0,0.24665426]
[1756254100169,0.83988,111810.0,111800.0,0.60745426]
[1756254103773,0.83988,111810.0,111800.0,0.99745426]
[1756254104872,0.83988,111810.0,111800.0,1.01745426]
[1756254105577,0.83988,111810.0,111800.0,0.62745426]
[1756254105769,1.27506403,111810.0,111800.0,0.24665426]
[1756254106574,1.27506403,111810.0,111800.0,0.18082426]
[1756254106771,1.88586403,111810.0,111800.0,0.02925426]
[1756254107073,1.90545797,111810.0,111800.0,0.00013426]
[1756254107268,0.099258,111790.0,111780.0,0.38194]
[1756254107465,0.02551,111780.0,111770.0,0.5829998]
[1756254107665,0.36145193,111780.0,111770.0,0.5829998]
[1756254107876,0.0157,111780.0,111770.0,1.1629998]
[1756254108077,0.0157,111780.0,111770.0,0.6029998]
[1756254108278,0.0157,111780.0,111770.0,0.9729998]
[1756254108567,0.0157,111780.0,111770.0,1.31875173]
[1756254108771,0.0157,111780.0,111770.0,0.9729998]
[1756254109362,0.0157,111780.0,111770.0,1.36667173]
[1756254109572,0.0157,111780.0,111770.0,1.62667173]
[1756254109973,0.9438287,111790.0,111780.0,0.250116]
[1756254110171,1.28958063,111790.0,111780.0,0.250116]
[1756254110671,0.9536387,111790.0,111780.0,0.250116]
[1756254110875,1.29939063,111790.0,111780.0,0.250116]
[1756254111374,1.30239063,111790.0,111780.0,0.250116]
[1756254112167,1.55239063,111790.0,111780.0,0.180696]
[1756254112369,1.55239063,111790.0,111780.0,0.0713]
[1756254112370,1.91319063,111790.0,111780.0,0.0713]
[1756254113076,1.91419063,111790.0,111780.0,0.0713]
[1756254113571,0.114966,111780.0,111770.0,0.0713]
[1756254113777,0.82151793,111780.0,111770.0,0.0713]
[1756254113969,0.82151793,111780.0,111770.0,0.10608]
[1756254114275,0.82151793,111780.0,111770.0,0.05026]
[1756254114477,1.07151793,111780.0,111770.0,0.05026]
[1756254114869,1.07351793,111780.0,111770.0,0.05026]
[1756254115068,1.07351793,111780.0,111770.0,0.02792]
[1756254116676,0.1149733,111770.0,111760.0,0.14072]
[1756254116878,1.66608523,111770.0,111760.0,0.14072]
[1756254117586,1.66608523,111770.0,111760.0,0.0713]
[1756254117971,1.66708523,111770.0,111760.0,0.0713]
[1756254118477,1.3213333,111770.0,111760.0,0.16066]
[1756254118674,1.3213333,111770.0,111760.0,0.2501313]
[1756254118872,1.66708523,111770.0,111760.0,0.2501313]
[1756254119577,1.30628523,111770.0,111760.0,0.2501313]
[1756254123375,1.30628523,111770.0,111760.0,0.05026]
[1756254123570,1.91708523,111770.0,111760.0,0.02792]
[1756254123772,0.105171,111760.0,111750.0,0.2301937]
[1756254123971,0.46073293,111760.0,111750.0,0.14072]
[1756254124173,0.46073293,111760.0,111750.0,0.16066]
[1756254124572,0.53119842,111760.0,111750.0,0.16066]
[1756254124981,0.46073293,111760.0,111750.0,0.16166]
[1756254126683,1.30489293,111760.0,111750.0,0.16166]
[1756254126878,1.30489293,111760.0,111750.0,0.12688]
[1756254127080,1.30689293,111760.0,111750.0,0.12688]
[1756254127279,1.32189925,111760.0,111750.0,0.12688]
[1756254127984,1.32189925,111760.0,111750.0,0.16019]
[1756254128383,1.32189925,111760.0,111750.0,0.15919]
[1756254129184,1.39295871,111760.0,111750.0,0.15919]
[1756254130790,1.39295871,111760.0,111750.0,0.02792]
[1756254131086,1.39163871,111760.0,111750.0,0.02792]
[1756254131282,0.54879871,111760.0,111750.0,0.02792]
[1756254131586,1.39167871,111760.0,111750.0,0.04995]
[1756254131788,0.54879871,111760.0,111750.0,0.07219]
[1756254131984,1.39155871,111760.0,111750.0,0.1055]
[1756254132990,1.39155871,111760.0,111750.0,0.13826]
[1756254133390,0.54879871,111760.0,111750.0,0.13826]
[1756254133591,1.39159871,111760.0,111750.0,0.15698]
[1756254133787,0.20304678,111760.0,111750.0,0.246459]
[1756254133983,0.20304678,111760.0,111750.0,0.607259]
[1756254133984,1.04528678,111760.0,111750.0,0.607259]
[1756254134290,1.39095871,111760.0,111750.0,0.607259]
[1756254134489,1.39095871,111760.0,111750.0,0.246459]
[1756254135189,1.04528678,111760.0,111750.0,0.246459]
[1756254135390,1.39103871,111760.0,111750.0,0.246459]
[1756254140792,1.38979871,111760.0,111750.0,0.246459]
[1756254142094,1.38979871,111760.0,111750.0,0.09091]
[1756254142494,1.38979871,111760.0,111750.0,0.2464589]
[1756254142697,1.04404678,111760.0,111750.0,0.2464589]
[1756254142895,1.39047871,111760.0,111750.0,0.2464589]
[1756254146891,0.54879871,111760.0,111750.0,0.2464589]
[1756254147201,1.39075871,111760.0,111750.0,0.2464589]
[1756254156007,1.04500678,111760.0,111750.0,0.2464589]
[1756254156207,1.39075871,111760.0,111750.0,0.2464589]
[1756254158911,0.54879871,111760.0,111750.0,0.2464589]
[1756254159112,1.38747871,111760.0,111750.0,0.2464589]
[1756254161321,1.56079008,111760.0,111750.0,0.2464589]
[1756254164117,0.72211008,111760.0,111750.0,0.2464589]
[1756254164621,1.29040843,111760.0,111750.0,0.88679055]
[1756254165521,0.45276843,111760.0,111750.0,0.88679055]
[1756254165720,1.29052843,111760.0,111750.0,0.88679055]
[1756254166220,1.29052843,111760.0,111750.0,0.6272589]
[1756254166419,1.55987008,111760.0,111750.0,0.2664589]
[1756254166622,1.55987008,111760.0,111750.0,0.02792]
[1756254169520,1.38688954,111760.0,111750.0,0.02792]
[1756254173224,1.38688954,111760.0,111750.0,0.07359]
[1756254173524,1.38604954,111760.0,111750.0,0.2286588]
[1756254173826,0.54912954,111760.0,111750.0,0.2286588]
[1756254174016,1.03948678,111760.0,111750.0,0.2470488]
[1756254174318,1.38556954,111760.0,111750.0,0.2470488]
[1756254176127,0.54912954,111760.0,111750.0,0.2670488]
[1756254176327,1.38556954,111760.0,111750.0,0.2670488]
[1756254177527,1.38556954,111760.0,111750.0,0.6278488]
[1756254177724,1.38556954,111760.0,111750.0,0.6078488]
[1756254177924,1.03948678,111760.0,111750.0,0.6078488]
[1756254178226,1.38556954,111760.0,111750.0,0.6078488]
[1756254178727,1.38584954,111760.0,111750.0,0.6078488]
[1756254180316,1.37595954,111760.0,111750.0,0.6278488]
[1756254181430,0.53931954,111760.0,111750.0,0.6278488]
[1756254181629,1.37559954,111760.0,111750.0,0.6278488]
[1756254181927,0.53931954,111760.0,111750.0,0.6278488]
[1756254182128,1.37515954,111760.0,111750.0,0.6278488]
[1756254182429,1.02907678,111760.0,111750.0,0.6278488]
[1756254182928,1.02907678,111760.0,111750.0,0.6078488]
[1756254183128,1.38496954,111760.0,111750.0,0.6078488]
[1756254183630,1.38496954,111760.0,111750.0,0.12276]
[1756254183824,1.38496954,111760.0,111750.0,0.07359]
[1756254184427,1.38496954,111760.0,111750.0,0.2470488]
[1756254186818,1.38496954,111760.0,111750.0,0.07359]
[1756254187130,0.1149888,111750.0,111740.0,0.16395466]
[1756254187329,0.46107156,111750.0,111740.0,0.23043466]
[1756254187926,0.48062192,111750.0,111740.0,0.02880426]
[1756254188129,0.48062192,111750.0,111740.0,0.00013426]
[1756254188436,0.84242192,111750.0,111740.0,0.00013426]
[1756254189336,0.84242192,111750.0,111740.0,0.02918426]
[1756254190226,0.84242192,111750.0,111740.0,0.07188426]
[1756254190425,1.31726192,111750.0,111740.0,0.18027066]
[1756254190627,1.31726192,111750.0,111740.0,0.24675066]
[1756254190834,1.31726192,111750.0,111740.0,0.15726426]
[1756254191334,1.31726192,111750.0,111740.0,0.24675066]
[1756254192029,1.31726192,111750.0,111740.0,0.15726426]
[1756254193830,0.48162192,111750.0,111740.0,0.12369426]
[1756254194035,0.96080916,111750.0,111740.0,0.24675066]
[1756254194236,1.30689192,111750.0,111740.0,0.24675066]
[1756254194437,1.31670192,111750.0,111740.0,0.24675066]
[1756254196843,1.31670192,111750.0,111740.0,0.15726426]
[1756254198036,0.97037916,111750.0,111740.0,0.24675066]
[1756254198230,1.31646192,111750.0,111740.0,0.24675066]
[1756254200243,1.31646192,111750.0,111740.0,0.15726426]
[1756254201541,1.31646192,111750.0,111740.0,0.24675066]
[1756254204642,1.31566192,111750.0,111740.0,0.24675066]
[1756254206346,1.14475943,111750.0,111740.0,0.24675066]
[1756254207143,1.23423823,111750.0,111740.0,0.24675066]
[1756254209349,1.18306968,111750.0,111740.0,0.24675066]
[1756254210445,1.18306968,111750.0,111740.0,0.50630154]
[1756254212248,1.18306968,111750.0,111740.0,0.02918426]
[1756254212555,1.80342056,111750.0,111740.0,0.02918426]
[1756254213054,1.2843188,111750.0,111740.0,0.04980426]
[1756254213247,1.54386968,111750.0,111740.0,0.02918426]
[1756254213545,1.80342056,111750.0,111740.0,0.00013426]
[1756254214449,1.80342056,111750.0,111740.0,0.02918426]
[1756254215955,0.96938056,111750.0,111740.0,0.02918426]
[1756254216148,1.54334968,111750.0,111740.0,0.07188426]
[1756254216552,1.18254968,111750.0,111740.0,0.07188426]
[1756254217161,0.34902968,111750.0,111740.0,0.16137076]
[1756254217350,0.34902968,111750.0,111740.0,0.21298076]
[1756254217558,0.34902968,111750.0,111740.0,0.50741164]
[1756254217853,1.18218968,111750.0,111740.0,0.50741164]
[1756254218050,0.34902968,111750.0,111740.0,0.50741164]
[1756254218250,1.18230968,111750.0,111740.0,0.50741164]
[1756254219058,0.34902968,111750.0,111740.0,0.50741164]
[1756254219246,1.18222968,111750.0,111740.0,0.60866076]
[1756254219451,0.9226788,111750.0,111740.0,0.60866076]
[1756254219653,1.26871892,111750.0,111740.0,0.60866076]
[1756254219853,1.26871892,111750.0,111740.0,0.24786076]
[1756254232473,0.9226788,111750.0,111740.0,0.24786076]
[1756254232679,1.26871892,111750.0,111740.0,0.24786076]
[1756254233474,0.17553678,111760.0,111750.0,0.2118884]
[1756254233681,1.00565678,111760.0,111750.0,0.2667684]
[1756254233978,1.00565678,111760.0,111750.0,0.6275684]
[1756254234882,1.00765678,111760.0,111750.0,0.6275684]
[1756254235279,1.00865678,111760.0,111750.0,0.6275684]
[1756254236281,1.00865678,111760.0,111750.0,0.6425684]
[1756254239279,1.26812793,111760.0,111750.0,0.90203955]
[1756254239780,1.09022636,111760.0,111750.0,0.90203955]
[1756254240281,0.0924781,111760.0,111750.0,1.15203955]
[1756254240576,0.003,111760.0,111750.0,1.5565107]
[1756254241888,0.001,111760.0,111750.0,1.5565107]
[1756254242186,0.93179141,111770.0,111760.0,0.2467604]
[1756254242384,0.93179141,111770.0,111760.0,0.86703155]
[1756254242580,1.19126256,111770.0,111760.0,0.5726804]
[1756254242888,0.0894704,111760.0,111750.0,0.41131]
[1756254243078,0.6084127,111760.0,111750.0,0.5231984]
[1756254243277,0.0894704,111760.0,111750.0,0.86903955]
[1756254243484,0.34894155,111760.0,111750.0,0.88903955]
[1756254243686,1.17790155,111760.0,111750.0,0.88903955]
[1756254244284,0.82896,111760.0,111750.0,0.88903955]
[1756254244584,0.82896,111760.0,111750.0,0.88803955]
[1756254244973,0.82896,111760.0,111750.0,0.88703955]
[1756254245187,0.83096,111760.0,111750.0,0.88703955]
[1756254245383,0.83096,111760.0,111750.0,0.97349329]
[1756254245783,0.82896,111760.0,111750.0,0.97349329]
[1756254246087,0.90194482,111760.0,111750.0,0.97349329]
[1756254248489,0.90194482,111760.0,111750.0,0.97449329]
[1756254248693,0.90190482,111760.0,111750.0,1.22549329]
[1756254248985,0.84188881,111770.0,111750.0,1.52549329]
[1756254249192,0.84188881,111770.0,111760.0,0.95399529]
[1756254249782,0.82688881,111770.0,111760.0,0.95399529]
[1756254251693,1.80354297,111780.0,111770.0,0.2472624]
[1756254251890,2.63338297,111780.0,111770.0,0.6080624]
[1756254252190,2.88338297,111780.0,111770.0,0.6080624]